[Event "*** Titled Tuesday Blitz"]
[Site "Chess.com"]
[Date "2020.04.07"]
[Round "3"]
[White "LiemLe"]
[Black "Kiborg95"]
[Result "1-0"]
[WhiteElo "2966"]
[BlackElo "2674"]
[TimeControl "180+1"]
[EndTime "13:30:24 PDT"]
[Termination "LiemLe won by resignation"]

1. e4 {[%clk 0:03:00.9]} 1... d6 {[%clk 0:02:54]} 2. d4 {[%clk 0:03:00.4]} 2...
Nf6 {[%clk 0:02:53.7]} 3. Nc3 {[%clk 0:02:59.8]} 3... e5 {[%clk 0:02:54.2]} 4.
Nf3 {[%clk 0:02:59.4]} 4... Nbd7 {[%clk 0:02:54.6]} 5. Bc4 {[%clk 0:02:59.1]}
5... Be7 {[%clk 0:02:54.6]} 6. O-O {[%clk 0:02:59.1]} 6... O-O {[%clk
0:02:55.2]} 7. Re1 {[%clk 0:02:59.3]} 7... c6 {[%clk 0:02:55.7]} 8. a4 {[%clk
0:02:58.7]} 8... h6 {[%clk 0:02:56.1]} 9. Ba2 {[%clk 0:02:50.6]} 9... a5 {[%clk
0:02:51.1]} 10. h3 {[%clk 0:02:38.1]} 10... Re8 {[%clk 0:02:51.1]} 11. Be3
{[%clk 0:02:37.7]} 11... exd4 {[%clk 0:02:49.9]} 12. Bxd4 {[%clk 0:02:33.2]}
12... Nf8 {[%clk 0:02:49.7]} 13. Qd3 {[%clk 0:02:18.6]} 13... Be6 {[%clk
0:02:49.8]} 14. Rad1 {[%clk 0:02:17.9]} 14... Bxa2 {[%clk 0:02:43.2]} 15. Nxa2
{[%clk 0:02:18.8]} 15... Ne6 {[%clk 0:02:40.3]} 16. Nc3 {[%clk 0:01:58.9]} 16...
Nd7 {[%clk 0:02:34.9]} 17. Be3 {[%clk 0:01:53]} 17... Bf8 {[%clk 0:02:27.1]} 18.
Qc4 {[%clk 0:01:50]} 18... Qc7 {[%clk 0:02:22]} 19. Ne2 {[%clk 0:01:48.3]} 19...
Ne5 {[%clk 0:02:19]} 20. Nxe5 {[%clk 0:01:47.3]} 20... dxe5 {[%clk 0:02:19.9]}
21. Nc1 {[%clk 0:01:46.4]} 21... Rec8 {[%clk 0:01:35.5]} 22. c3 {[%clk
0:01:39.6]} 22... Rab8 {[%clk 0:01:25.9]} 23. Nb3 {[%clk 0:01:20.2]} 23... b5
{[%clk 0:01:26]} 24. axb5 {[%clk 0:01:21.1]} 24... Rxb5 {[%clk 0:01:26.9]} 25.
Bc1 {[%clk 0:00:57.5]} 25... Qa7 {[%clk 0:01:11.9]} 26. Nd2 {[%clk 0:00:53.7]}
26... a4 {[%clk 0:01:02.8]} 27. Qe2 {[%clk 0:00:45.6]} 27... Nf4 {[%clk
0:00:49.5]} 28. Qf3 {[%clk 0:00:45.1]} 28... a3 {[%clk 0:00:47.6]} 29. bxa3
{[%clk 0:00:44.4]} 29... Bxa3 {[%clk 0:00:48.5]} 30. Bxa3 {[%clk 0:00:36.9]}
30... Qxa3 {[%clk 0:00:49.4]} 31. Nc4 {[%clk 0:00:37.6]} 31... Qb3 {[%clk
0:00:30.7]} 32. Nd6 {[%clk 0:00:37.5]} 32... Rc7 {[%clk 0:00:31.4]} 33. Nxb5
{[%clk 0:00:36.1]} 33... cxb5 {[%clk 0:00:32.3]} 34. Rb1 {[%clk 0:00:33.5]}
34... Qxc3 {[%clk 0:00:27.7]} 35. Qxc3 {[%clk 0:00:33.5]} 35... Rxc3 {[%clk
0:00:28.6]} 36. Rxb5 {[%clk 0:00:34]} 36... f6 {[%clk 0:00:27.7]} 37. h4 {[%clk
0:00:30.1]} 37... h5 {[%clk 0:00:27.4]} 38. g3 {[%clk 0:00:28.1]} 38... Nd3
{[%clk 0:00:27.4]} 39. Rd1 {[%clk 0:00:23.3]} 39... Nc5 {[%clk 0:00:27.5]} 40.
Rb4 {[%clk 0:00:21.2]} 40... Ne6 {[%clk 0:00:20.7]} 41. Rd7 {[%clk 0:00:18.4]}
41... Rc6 {[%clk 0:00:20.2]} 42. Rb8+ {[%clk 0:00:16.9]} 42... Kh7 {[%clk
0:00:20.6]} 43. Rbb7 {[%clk 0:00:17.4]} 43... Kg6 {[%clk 0:00:21.1]} 44. Re7
{[%clk 0:00:17.4]} 44... Ra6 {[%clk 0:00:21.3]} 45. Kg2 {[%clk 0:00:16.8]} 45...
Kh6 {[%clk 0:00:20.6]} 46. Ra7 {[%clk 0:00:17]} 46... Rb6 {[%clk 0:00:20.8]} 47.
Kf3 {[%clk 0:00:15.4]} 47... Rb3+ {[%clk 0:00:20.5]} 48. Ke2 {[%clk 0:00:15.2]}
48... Rb6 {[%clk 0:00:20.7]} 49. Ke3 {[%clk 0:00:15.2]} 49... Rc6 {[%clk
0:00:21.1]} 50. f4 {[%clk 0:00:14.8]} 50... exf4+ {[%clk 0:00:15.1]} 51. gxf4
{[%clk 0:00:15.7]} 51... Rc3+ {[%clk 0:00:14.8]} 52. Kd2 {[%clk 0:00:15.8]} 1-0

[Event "*** Titled Tuesday Blitz"]
[Site "Chess.com"]
[Date "2020.04.07"]
[Round "3"]
[White "chabo96"]
[Black "Megagigahiper3345"]
[Result "1-0"]
[WhiteElo "2587"]
[BlackElo "2293"]
[TimeControl "180+1"]
[EndTime "13:30:24 PDT"]
[Termination "chabo96 won by resignation"]

1. e4 {[%clk 0:03:00.9]} 1... c5 {[%clk 0:02:54.6]} 2. a3 {[%clk 0:03:00.3]}
2... g6 {[%clk 0:02:51.6]} 3. Bc4 {[%clk 0:02:58.8]} 3... Bg7 {[%clk 0:02:51.7]}
4. Nc3 {[%clk 0:02:58.9]} 4... Nc6 {[%clk 0:02:49]} 5. d3 {[%clk 0:02:59.2]}
5... e6 {[%clk 0:02:49.1]} 6. Ba2 {[%clk 0:02:59.4]} 6... Nge7 {[%clk
0:02:49.6]} 7. h4 {[%clk 0:02:59.7]} 7... h6 {[%clk 0:02:47.4]} 8. h5 {[%clk
0:02:59.3]} 8... g5 {[%clk 0:02:47.6]} 9. f4 {[%clk 0:03:00]} 9... gxf4 {[%clk
0:02:45]} 10. Bxf4 {[%clk 0:03:00.9]} 10... d5 {[%clk 0:02:44]} 11. Nf3 {[%clk
0:02:52.5]} 11... d4 {[%clk 0:02:09.1]} 12. Ne2 {[%clk 0:02:38.3]} 12... e5
{[%clk 0:02:05.8]} 13. Bd2 {[%clk 0:02:35.3]} 13... f5 {[%clk 0:01:57]} 14. Nh4
{[%clk 0:02:12.5]} 14... fxe4 {[%clk 0:01:52]} 15. dxe4 {[%clk 0:02:07.2]} 15...
Qd6 {[%clk 0:01:51.8]} 16. Ng3 {[%clk 0:01:59.1]} 16... Bd7 {[%clk 0:01:35.2]}
17. Qe2 {[%clk 0:01:48]} 17... O-O-O {[%clk 0:01:34]} 18. O-O-O {[%clk
0:01:45.4]} 18... Rdf8 {[%clk 0:01:17.6]} 19. Rdf1 {[%clk 0:01:42.4]} 19... Be6
{[%clk 0:00:50.3]} 20. Ngf5 {[%clk 0:01:34]} 20... Nxf5 {[%clk 0:00:42.5]} 21.
Nxf5 {[%clk 0:01:28.4]} 21... Rxf5 {[%clk 0:00:24.2]} 22. Bxe6+ {[%clk
0:01:26.7]} 22... Qxe6 {[%clk 0:00:24.7]} 23. exf5 {[%clk 0:01:24.6]} 23... Qa2
{[%clk 0:00:24.5]} 24. Kd1 {[%clk 0:01:23.3]} 24... d3 {[%clk 0:00:23.9]} 25.
Qxd3 {[%clk 0:00:59.8]} 25... Rd8 {[%clk 0:00:21.9]} 26. Qc3 {[%clk 0:00:25.2]}
26... e4 {[%clk 0:00:10.2]} 27. f6 {[%clk 0:00:25.1]} 27... Nd4 {[%clk
0:00:07.6]} 28. Qxc5+ {[%clk 0:00:20.3]} 28... Kb8 {[%clk 0:00:07.8]} 29. Ke1
{[%clk 0:00:10.2]} 29... e3 {[%clk 0:00:05.7]} 30. Bxe3 {[%clk 0:00:09]} 30...
Bf8 {[%clk 0:00:05.2]} 31. Qe5+ {[%clk 0:00:08.4]} 31... Bd6 {[%clk 0:00:04]}
32. Qxd4 {[%clk 0:00:07.2]} 32... Bg3+ {[%clk 0:00:04.1]} 33. Ke2 {[%clk
0:00:07]} 33... Rxd4 {[%clk 0:00:03.4]} 34. Bxd4 {[%clk 0:00:07.9]} 34... Qc4+
{[%clk 0:00:03.2]} 35. Ke3 {[%clk 0:00:07.8]} 35... Bd6 {[%clk 0:00:01.9]} 36.
f7 {[%clk 0:00:07.4]} 36... b6 {[%clk 0:00:02.5]} 37. f8=Q+ {[%clk 0:00:07.5]}
37... Bxf8 {[%clk 0:00:03.1]} 38. Rxf8+ {[%clk 0:00:08.3]} 38... Kb7 {[%clk
0:00:04]} 39. Rf2 {[%clk 0:00:07.8]} 39... Qe6+ {[%clk 0:00:04.2]} 40. Kd3
{[%clk 0:00:08.2]} 40... Qd5 {[%clk 0:00:03.1]} 41. Re1 {[%clk 0:00:07.7]} 41...
Qb5+ {[%clk 0:00:03.5]} 42. c4 {[%clk 0:00:07.5]} 42... Qb3+ {[%clk 0:00:04.1]}
43. Bc3 {[%clk 0:00:07.5]} 43... Qa4 {[%clk 0:00:04.8]} 44. Re7+ {[%clk
0:00:07.3]} 44... Ka6 {[%clk 0:00:03.3]} 45. Kd2 {[%clk 0:00:06.7]} 45... Qc6
{[%clk 0:00:01.5]} 46. Rff7 {[%clk 0:00:07]} 46... Qd6+ {[%clk 0:00:02]} 47. Kc2
{[%clk 0:00:07.2]} 47... b5 {[%clk 0:00:02.4]} 48. Rf6 {[%clk 0:00:06.2]} 48...
Qxf6 {[%clk 0:00:02]} 49. Bxf6 {[%clk 0:00:07.1]} 1-0

[Event "*** Titled Tuesday Blitz"]
[Site "Chess.com"]
[Date "2020.04.07"]
[Round "3"]
[White "FeketeBarika"]
[Black "Th3ChessViking"]
[Result "1/2-1/2"]
[WhiteElo "2268"]
[BlackElo "2529"]
[TimeControl "180+1"]
[EndTime "13:30:24 PDT"]
[Termination "Game drawn by repetition"]

1. Nf3 {[%clk 0:03:00.9]} 1... c5 {[%clk 0:02:57.9]} 2. g3 {[%clk 0:03:01.8]}
2... Nc6 {[%clk 0:02:56]} 3. c4 {[%clk 0:03:02.2]} 3... g6 {[%clk 0:02:55.2]} 4.
Bg2 {[%clk 0:03:02.6]} 4... Bg7 {[%clk 0:02:55.8]} 5. O-O {[%clk 0:03:02.6]}
5... d6 {[%clk 0:02:56.7]} 6. Nc3 {[%clk 0:03:02.8]} 6... Bf5 {[%clk 0:02:57]}
7. d3 {[%clk 0:03:01.8]} 7... Qd7 {[%clk 0:02:57.3]} 8. Re1 {[%clk 0:03:01.9]}
8... Bh3 {[%clk 0:02:56.5]} 9. Bh1 {[%clk 0:03:01.3]} 9... h5 {[%clk 0:02:56.9]}
10. Bg5 {[%clk 0:02:59.5]} 10... f6 {[%clk 0:02:56.1]} 11. Bd2 {[%clk
0:02:59.4]} 11... h4 {[%clk 0:02:56.2]} 12. Nd5 {[%clk 0:02:58.6]} 12... O-O-O
{[%clk 0:02:54]} 13. b4 {[%clk 0:02:56.4]} 13... hxg3 {[%clk 0:02:48.6]} 14.
fxg3 {[%clk 0:02:55.1]} 14... Nh6 {[%clk 0:02:44.6]} 15. Rb1 {[%clk 0:02:47.7]}
15... Ng4 {[%clk 0:02:39.3]} 16. Qa4 {[%clk 0:02:30.8]} 16... e6 {[%clk
0:02:35.3]} 17. b5 {[%clk 0:02:20.5]} 17... Nb8 {[%clk 0:01:41.4]} 18. Nf4
{[%clk 0:02:06.8]} 18... g5 {[%clk 0:01:18.7]} 19. Nxh3 {[%clk 0:01:59.6]} 19...
Rxh3 {[%clk 0:01:19.6]} 20. Qxa7 {[%clk 0:01:55.4]} 20... Nxh2 {[%clk
0:00:36.8]} 21. Nxh2 {[%clk 0:01:47.6]} 21... Rdh8 {[%clk 0:00:37.2]} 22. Bg2
{[%clk 0:01:29.2]} 22... Rxh2 {[%clk 0:00:35.1]} 23. a4 {[%clk 0:00:59]} 23...
f5 {[%clk 0:00:33.7]} 24. a5 {[%clk 0:00:58.4]} 24... Bd4+ {[%clk 0:00:32.8]}
25. e3 {[%clk 0:00:58.4]} 25... Qh7 {[%clk 0:00:32.1]} 26. Qxb7+ {[%clk
0:00:28.9]} 26... Qxb7 {[%clk 0:00:33]} 27. Bxb7+ {[%clk 0:00:28.5]} 27... Kxb7
{[%clk 0:00:33.9]} 28. a6+ {[%clk 0:00:27.9]} 28... Kb6 {[%clk 0:00:22.8]} 29.
exd4 {[%clk 0:00:27.2]} 29... Rxd2 {[%clk 0:00:18.6]} 30. Rxe6 {[%clk
0:00:26.4]} 30... Rhh2 {[%clk 0:00:14.7]} 31. Rxd6+ {[%clk 0:00:15.6]} 31... Kc7
{[%clk 0:00:13.4]} 32. dxc5 {[%clk 0:00:16]} 32... Rdg2+ {[%clk 0:00:11.6]} 33.
Kf1 {[%clk 0:00:15.9]} 33... Ra2 {[%clk 0:00:10.6]} 34. b6+ {[%clk 0:00:14.1]}
34... Kc8 {[%clk 0:00:10.6]} 35. Kg1 {[%clk 0:00:12.2]} 35... Rag2+ {[%clk
0:00:04.9]} 36. Kf1 {[%clk 0:00:11.7]} 36... Ra2 {[%clk 0:00:05.8]} 37. Kg1
{[%clk 0:00:11.6]} 37... Nxa6 {[%clk 0:00:03.7]} 38. b7+ {[%clk 0:00:10.6]}
38... Kc7 {[%clk 0:00:04.6]} 39. Rxa6 {[%clk 0:00:07.2]} 39... Rag2+ {[%clk
0:00:04.2]} 40. Kf1 {[%clk 0:00:07.2]} 40... Rf2+ {[%clk 0:00:04.4]} 41. Ke1
{[%clk 0:00:05.1]} 41... Re2+ {[%clk 0:00:04.5]} 42. Kf1 {[%clk 0:00:05.1]}
42... Rhf2+ {[%clk 0:00:03.2]} 43. Kg1 {[%clk 0:00:04.7]} 43... Rg2+ {[%clk
0:00:03.3]} 44. Kf1 {[%clk 0:00:04.2]} 44... Rgf2+ {[%clk 0:00:02.8]} 45. Kg1
{[%clk 0:00:04.4]} 45... Rg2+ {[%clk 0:00:03.7]} 46. Kf1 {[%clk 0:00:04.7]}
46... Rgf2+ {[%clk 0:00:03.9]} 1/2-1/2

[Event "*** Titled Tuesday Blitz"]
[Site "Chess.com"]
[Date "2020.04.07"]
[Round "3"]
[White "Maili15"]
[Black "keepitcoming"]
[Result "1-0"]
[WhiteElo "2293"]
[BlackElo "2515"]
[TimeControl "180+1"]
[EndTime "13:30:25 PDT"]
[Termination "Maili15 won by resignation"]

1. d4 {[%clk 0:03:00.9]} 1... d5 {[%clk 0:02:59.8]} 2. c4 {[%clk 0:03:01]} 2...
e6 {[%clk 0:02:59.8]} 3. Nc3 {[%clk 0:03:01]} 3... c5 {[%clk 0:03:00.3]} 4. e3
{[%clk 0:03:00.7]} 4... cxd4 {[%clk 0:03:00.6]} 5. exd4 {[%clk 0:03:00.2]} 5...
Nf6 {[%clk 0:03:01.2]} 6. Nf3 {[%clk 0:03:00.4]} 6... Be7 {[%clk 0:03:00.8]} 7.
Bg5 {[%clk 0:02:56.2]} 7... O-O {[%clk 0:03:00.5]} 8. Bd3 {[%clk 0:02:54.2]}
8... dxc4 {[%clk 0:03:00.8]} 9. Bxc4 {[%clk 0:02:54.3]} 9... Nc6 {[%clk
0:03:01.7]} 10. O-O {[%clk 0:02:49.6]} 10... b6 {[%clk 0:03:02.2]} 11. Rc1
{[%clk 0:02:43.7]} 11... Bb7 {[%clk 0:03:01.9]} 12. Qd3 {[%clk 0:02:41.2]} 12...
Rc8 {[%clk 0:03:02]} 13. a3 {[%clk 0:02:37.9]} 13... h6 {[%clk 0:02:59.8]} 14.
Bh4 {[%clk 0:02:37]} 14... Nh5 {[%clk 0:02:59.9]} 15. Bxe7 {[%clk 0:02:29.9]}
15... Nxe7 {[%clk 0:02:55.7]} 16. Ne2 {[%clk 0:02:15.9]} 16... Ng6 {[%clk
0:02:26.7]} 17. Qe3 {[%clk 0:01:54.5]} 17... Qf6 {[%clk 0:02:17.9]} 18. Ne5
{[%clk 0:01:42.9]} 18... Nhf4 {[%clk 0:02:08.8]} 19. Nxg6 {[%clk 0:01:19.5]}
19... Nxg2 {[%clk 0:02:05]} 20. Qg3 {[%clk 0:00:30.8]} 20... fxg6 {[%clk
0:02:05.2]} 21. d5 {[%clk 0:00:29.9]} 21... Rxc4 {[%clk 0:01:55]} 22. Rxc4
{[%clk 0:00:26.9]} 22... Bxd5 {[%clk 0:01:55.9]} 23. Rg4 {[%clk 0:00:20.1]}
23... g5 {[%clk 0:01:47.2]} 24. Qh3 {[%clk 0:00:19.8]} 24... Nf4 {[%clk
0:01:42.6]} 25. Nxf4 {[%clk 0:00:19.5]} 25... gxf4 {[%clk 0:01:43.5]} 26. f3
{[%clk 0:00:16.1]} 26... Qd4+ {[%clk 0:01:38.2]} 27. Kh1 {[%clk 0:00:14.6]}
27... Rf7 {[%clk 0:01:31.4]} 28. Qxh6 {[%clk 0:00:12.6]} 28... Qxb2 {[%clk
0:01:22.2]} 29. Qh3 {[%clk 0:00:10.9]} 29... Qxa3 {[%clk 0:01:20.3]} 30. Rg2
{[%clk 0:00:10.4]} 30... Qd3 {[%clk 0:01:15.5]} 31. Rgf2 {[%clk 0:00:10]} 31...
a5 {[%clk 0:01:06]} 32. Qg2 {[%clk 0:00:09.9]} 32... a4 {[%clk 0:01:05.6]} 33.
Rd2 {[%clk 0:00:09.8]} 33... Qb5 {[%clk 0:00:55.9]} 34. Qf2 {[%clk 0:00:08.2]}
34... a3 {[%clk 0:00:53.5]} 35. Re1 {[%clk 0:00:06.4]} 35... a2 {[%clk
0:00:51.6]} 36. Rxa2 {[%clk 0:00:05.7]} 36... Bxa2 {[%clk 0:00:49.1]} 37. Qxa2
{[%clk 0:00:06.6]} 37... Qd3 {[%clk 0:00:46.9]} 38. Qxe6 {[%clk 0:00:05.8]}
38... Qxf3+ {[%clk 0:00:46.9]} 39. Kg1 {[%clk 0:00:06.4]} 39... Qb7 {[%clk
0:00:39.3]} 40. Rb1 {[%clk 0:00:05.4]} 40... b5 {[%clk 0:00:38.4]} 41. Qe5
{[%clk 0:00:04.5]} 41... Rf6 {[%clk 0:00:30.9]} 42. Qe8+ {[%clk 0:00:03.6]}
42... Kh7 {[%clk 0:00:29.7]} 43. Qh5+ {[%clk 0:00:03.7]} 43... Rh6 {[%clk
0:00:28.8]} 44. Qf5+ {[%clk 0:00:03.8]} 44... Rg6+ {[%clk 0:00:26.3]} 45. Kf1
{[%clk 0:00:04.1]} 45... Qg2+ {[%clk 0:00:25.3]} 46. Ke1 {[%clk 0:00:04.4]}
46... Qg1+ {[%clk 0:00:24.9]} 47. Kd2 {[%clk 0:00:04.3]} 47... Qe3+ {[%clk
0:00:25]} 48. Kc2 {[%clk 0:00:04]} 48... f3 {[%clk 0:00:22.7]} 49. Rxb5 {[%clk
0:00:03.6]} 49... Qe2+ {[%clk 0:00:20.4]} 50. Kc3 {[%clk 0:00:03.2]} 50... Qe1+
{[%clk 0:00:20.2]} 51. Kd4 {[%clk 0:00:02.1]} 51... f2 {[%clk 0:00:19.7]} 52.
Qh5+ {[%clk 0:00:02.2]} 52... Rh6 {[%clk 0:00:17.8]} 53. Qf5+ {[%clk 0:00:02.4]}
53... Kg8 {[%clk 0:00:16.7]} 54. Rb8+ {[%clk 0:00:02]} 1-0

[Event "*** Titled Tuesday Blitz"]
[Site "Chess.com"]
[Date "2020.04.07"]
[Round "3"]
[White "Kaliopa"]
[Black "Sajkochess"]
[Result "0-1"]
[WhiteElo "2109"]
[BlackElo "2355"]
[TimeControl "180+1"]
[EndTime "13:30:26 PDT"]
[Termination "Sajkochess won on time"]

1. d4 {[%clk 0:03:00.9]} 1... Nf6 {[%clk 0:02:30.7]} 2. c4 {[%clk 0:02:59.9]}
2... e6 {[%clk 0:02:29.6]} 3. Nc3 {[%clk 0:02:58]} 3... Bb4 {[%clk 0:02:30]} 4.
e3 {[%clk 0:02:56.4]} 4... O-O {[%clk 0:02:29.7]} 5. Bd3 {[%clk 0:02:55.7]} 5...
d5 {[%clk 0:02:30]} 6. cxd5 {[%clk 0:02:54.8]} 6... exd5 {[%clk 0:02:28.7]} 7.
Ne2 {[%clk 0:02:53.9]} 7... c6 {[%clk 0:02:21.5]} 8. O-O {[%clk 0:02:50]} 8...
Bd6 {[%clk 0:02:21]} 9. Bd2 {[%clk 0:02:40.9]} 9... Re8 {[%clk 0:02:13]} 10. Rc1
{[%clk 0:02:37.3]} 10... Nbd7 {[%clk 0:02:12.4]} 11. Ng3 {[%clk 0:02:36.5]}
11... g6 {[%clk 0:02:03.9]} 12. f3 {[%clk 0:02:22.9]} 12... Nf8 {[%clk
0:01:54.3]} 13. Kh1 {[%clk 0:02:03]} 13... h5 {[%clk 0:01:36.9]} 14. f4 {[%clk
0:01:36]} 14... h4 {[%clk 0:01:19.7]} 15. Nge2 {[%clk 0:01:34.9]} 15... h3
{[%clk 0:01:18.3]} 16. Ng3 {[%clk 0:01:14.7]} 16... Bg4 {[%clk 0:01:14.7]} 17.
Be2 {[%clk 0:01:05.9]} 17... hxg2+ {[%clk 0:01:12.1]} 18. Kxg2 {[%clk
0:01:04.8]} 18... Bxe2 {[%clk 0:01:12]} 19. Qxe2 {[%clk 0:01:02.1]} 19... N8h7
{[%clk 0:01:03.6]} 20. f5 {[%clk 0:00:54.3]} 20... Ng5 {[%clk 0:00:57.3]} 21.
fxg6 {[%clk 0:00:52.6]} 21... fxg6 {[%clk 0:00:56.9]} 22. Rg1 {[%clk 0:00:21.2]}
22... Bxg3 {[%clk 0:00:48.6]} 23. hxg3 {[%clk 0:00:19.7]} 23... Kg7 {[%clk
0:00:48.5]} 24. Rh1 {[%clk 0:00:18.8]} 24... Qd6 {[%clk 0:00:45.1]} 25. Rcf1
{[%clk 0:00:13.7]} 25... Nge4 {[%clk 0:00:37.3]} 26. Rf4 {[%clk 0:00:10.1]}
26... Rh8 {[%clk 0:00:31.8]} 27. Rxh8 {[%clk 0:00:08.4]} 27... Rxh8 {[%clk
0:00:30.6]} 28. Nxe4 {[%clk 0:00:08.9]} 28... Nxe4 {[%clk 0:00:26.7]} 29. Be1
{[%clk 0:00:08.3]} 29... Qe6 {[%clk 0:00:19.2]} 30. Qg4 {[%clk 0:00:06.5]} 30...
Qxg4 {[%clk 0:00:19.1]} 31. Rxg4 {[%clk 0:00:06.7]} 31... g5 {[%clk 0:00:19.6]}
32. Kf3 {[%clk 0:00:05.4]} 32... Kg6 {[%clk 0:00:18.4]} 33. Rxe4 {[%clk
0:00:03.4]} 33... dxe4+ {[%clk 0:00:18.3]} 34. Kxe4 {[%clk 0:00:04.1]} 34... Rh2
{[%clk 0:00:18.1]} 35. Bc3 {[%clk 0:00:02.6]} 35... g4 {[%clk 0:00:16.2]} 36. a3
{[%clk 0:00:02.3]} 36... Rf2 {[%clk 0:00:15.8]} 37. Be1 {[%clk 0:00:01.5]} 37...
Rf3 {[%clk 0:00:16.1]} 38. Kd3 {[%clk 0:00:01.3]} 38... Kf5 {[%clk 0:00:15.6]}
39. Kd2 {[%clk 0:00:01.6]} 39... Ke4 {[%clk 0:00:15.9]} 0-1

[Event "*** Titled Tuesday Blitz"]
[Site "Chess.com"]
[Date "2020.04.07"]
[Round "3"]
[White "OparinGrigoriy"]
[Black "Nikolakis2014"]
[Result "1/2-1/2"]
[WhiteElo "2976"]
[BlackElo "2691"]
[TimeControl "180+1"]
[EndTime "13:30:27 PDT"]
[Termination "Game drawn by agreement"]

1. Nf3 {[%clk 0:03:00.9]} 1... Nf6 {[%clk 0:02:58]} 2. g3 {[%clk 0:03:01.8]}
2... d5 {[%clk 0:02:57.2]} 3. Bg2 {[%clk 0:02:59.8]} 3... c5 {[%clk 0:02:57]} 4.
O-O {[%clk 0:03:00.2]} 4... e6 {[%clk 0:02:55.5]} 5. d4 {[%clk 0:02:57.9]} 5...
cxd4 {[%clk 0:02:53]} 6. Nxd4 {[%clk 0:02:58.8]} 6... e5 {[%clk 0:02:53.2]} 7.
Nf3 {[%clk 0:02:58.8]} 7... Nc6 {[%clk 0:02:51.4]} 8. c4 {[%clk 0:02:58.7]} 8...
d4 {[%clk 0:02:51.2]} 9. e3 {[%clk 0:02:59]} 9... Be7 {[%clk 0:02:51]} 10. exd4
{[%clk 0:02:59.2]} 10... exd4 {[%clk 0:02:51.2]} 11. Bf4 {[%clk 0:02:59.3]}
11... O-O {[%clk 0:02:46.7]} 12. Ne5 {[%clk 0:02:56.6]} 12... Bd7 {[%clk
0:02:35.5]} 13. Re1 {[%clk 0:02:50.5]} 13... Bb4 {[%clk 0:02:24.8]} 14. Nd2
{[%clk 0:02:47.7]} 14... Re8 {[%clk 0:02:24.2]} 15. a3 {[%clk 0:02:42.5]} 15...
Bf8 {[%clk 0:01:53.4]} 16. Qb3 {[%clk 0:02:21.8]} 16... Nh5 {[%clk 0:01:45.8]}
17. Qxb7 {[%clk 0:02:01.8]} 17... Nxf4 {[%clk 0:01:36.5]} 18. Nxc6 {[%clk
0:01:59.1]} 18... Bxc6 {[%clk 0:01:26.4]} 19. Qxc6 {[%clk 0:01:54.8]} 19...
Rxe1+ {[%clk 0:01:20.5]} 20. Rxe1 {[%clk 0:01:55.7]} 20... Nxg2 {[%clk
0:01:18.7]} 21. Kxg2 {[%clk 0:01:55.4]} 21... Rc8 {[%clk 0:01:16.4]} 22. Qf3
{[%clk 0:01:53.8]} 22... a5 {[%clk 0:01:15.4]} 23. Re4 {[%clk 0:01:50.8]} 23...
Qb6 {[%clk 0:01:12.9]} 24. Qb3 {[%clk 0:01:35.6]} 24... Qc6 {[%clk 0:01:09.5]}
25. f3 {[%clk 0:01:32.6]} 25... g6 {[%clk 0:00:57.1]} 26. Qd3 {[%clk 0:01:30.9]}
26... Bg7 {[%clk 0:00:54]} 27. b4 {[%clk 0:01:30.7]} 27... axb4 {[%clk
0:00:51.8]} 28. axb4 {[%clk 0:01:31.6]} 28... Qa4 {[%clk 0:00:51.5]} 29. b5
{[%clk 0:01:31.8]} 29... Qd1 {[%clk 0:00:46.7]} 30. Qe2 {[%clk 0:01:19.1]} 30...
Qc2 {[%clk 0:00:42.3]} 31. b6 {[%clk 0:01:19.3]} 31... d3 {[%clk 0:00:33.1]} 32.
Qf2 {[%clk 0:01:19.5]} 32... Bc3 {[%clk 0:00:30.2]} 33. b7 {[%clk 0:00:55.3]}
33... Rb8 {[%clk 0:00:28.3]} 34. Qa7 {[%clk 0:00:54.4]} 34... Qxd2+ {[%clk
0:00:21.1]} 35. Kh3 {[%clk 0:00:54.6]} 35... Be5 {[%clk 0:00:19]} 36. Rxe5
{[%clk 0:00:48.6]} 36... Qh6+ {[%clk 0:00:18]} 37. Kg2 {[%clk 0:00:42.9]} 37...
Qd2+ {[%clk 0:00:17.4]} 38. Qf2 {[%clk 0:00:26.1]} 38... Qc3 {[%clk 0:00:14.2]}
39. Re7 {[%clk 0:00:11.1]} 39... d2 {[%clk 0:00:14.2]} 40. Rd7 {[%clk
0:00:10.2]} 40... Rxb7 {[%clk 0:00:14.4]} 41. Rxd2 {[%clk 0:00:06.9]} 41... Qxc4
{[%clk 0:00:14.1]} 42. h4 {[%clk 0:00:07.5]} 42... Kg7 {[%clk 0:00:13.5]} 43.
Rc2 {[%clk 0:00:07.9]} 43... Qe6 {[%clk 0:00:13.4]} 44. Qd4+ {[%clk 0:00:07]}
44... Qf6 {[%clk 0:00:13.5]} 45. Qd3 {[%clk 0:00:07.2]} 45... Re7 {[%clk
0:00:12.6]} 46. Ra2 {[%clk 0:00:06.1]} 46... h5 {[%clk 0:00:12.8]} 47. Qd2
{[%clk 0:00:04.9]} 47... Qe6 {[%clk 0:00:12.9]} 48. Qf2 {[%clk 0:00:05.4]} 48...
Qf6 {[%clk 0:00:12.8]} 49. Rd2 {[%clk 0:00:05.4]} 49... Rc7 {[%clk 0:00:12.6]}
50. Qd4 {[%clk 0:00:05]} 50... Qxd4 {[%clk 0:00:11.4]} 51. Rxd4 {[%clk
0:00:05.9]} 51... Rc2+ {[%clk 0:00:11.6]} 52. Kh3 {[%clk 0:00:05.4]} 52... Rf2
{[%clk 0:00:12.1]} 53. Rd3 {[%clk 0:00:05.3]} 1/2-1/2